[Event "Memorial Ukrainian Chess Warriors 2024"]
[Site "Lviv"]
[Date "2024.03.15"]
[Round "7.15"]
[White "Pentsko, Stanislav"]
[Black "Domanskiy, Mykola"]
[Result "1-0"]
[ECO "A43"]
[WhiteElo "1634"]
[BlackElo "2046"]
[Annotator "RC"]
[PlyCount "51"]
[EventDate "2024.03.06"]
[EventType "swiss"]
[EventCountry "UKR"]
[SourceTitle "playchess.com"]
[Source "ChessBase"]
[SourceQuality "1"]
[TimeControl "600+5"]

1. d4 {[%emt 0:00:01]} c5 {[%emt 0:00:17]} 2. d5 {[%emt 0:00:01]} Nf6 {[%emt 0:00:02]} 3. Nc3 {[%emt 0:00:01]} d6 {[%emt 0:00:01]} 4. e4 {[%emt 0:00:03]} g6 {[%emt 0:00:01]} 5. f4 {[%emt 0:00:04]} Bg7 {[%emt 0:00:03]} 6. Nf3 {[%emt 0:00:01]} O-O {[%emt 0:00:04]} 7. Bd3 {[%emt 0:00:02]} e6 {[%emt 0:00:01]} 8. O-O {[%emt 0:00:09]} exd5 {[%emt 0:00:10]} 9. exd5 {[%emt 0:00:01]} a6 {[%emt 0:00:03]} 10. a4 {[%emt 0:00:01]} Re8 {[%emt 0:00:07]} 11. f5 {[%emt 0:00:03]} Nbd7 {[%emt 0:00:09]} 12. fxg6 {[%emt 0:00:13]} hxg6 {[%emt 0:00:09]} 13. Bg5 {[%emt 0:00:03]} Qb6 {[%emt 0:00:27]} 14. a5 {[%emt 0:00:58]} Qxb2 {[%emt 0:00:34]} 15. Na4 {[%emt 0:00:37]} Qb4 {[%emt 0:00:03]} 16. Bd2 {[%emt 0:00:06]} Qg4 {[%emt 0:00:04]} 17. h3 {[%emt 0:00:08]} Qh5 {[%emt 0:00:36]} 18. c4 {[%emt 0:00:07]} Ne4 {[%emt 0:00:07]} 19. Rb1 {[%emt 0:01:03]} Nxd2 {[%emt 0:00:30]} 20. Qxd2 {[%emt 0:00:05]} Rb8 {[%emt 0:00:32]} 21. Rbe1 Ne5 {[%emt 0:00:12]} 22. Nb6 {[%emt 0:01:49]} Rf8 {[%emt 0:03:28]} 23. Be2 Nxf3+ {[%emt 0:00:25]} 24. Bxf3 {[%emt 0:01:29]} Qh4 {[%emt 0:00:01]} 25. Re4 {[%emt 0:00:15]} Qg3 {[%emt 0:00:17]} 26. Bg4 {[%emt 0:04:00]} 1-0

[Event "Memorial Ukrainian Chess Warriors 2024"]
[Site "Lviv"]
[Date "2024.03.15"]
[Round "7.16"]
[White "Hrabinska, Myroslava"]
[Black "Lehinovych, Maksym"]
[Result "0-1"]
[ECO "B07"]
[WhiteElo "2177"]
[BlackElo "1618"]
[Annotator "RC"]
[PlyCount "40"]
[EventDate "2024.03.06"]
[EventType "swiss"]
[EventCountry "UKR"]
[SourceTitle "playchess.com"]
[Source "ChessBase"]
[SourceQuality "1"]
[TimeControl "600+5"]

1. e4 {[%emt 0:00:03]} d6 {[%emt 0:00:00]} 2. d4 {[%emt 0:00:03]} Nf6 {[%emt 0:00:02]} 3. Nc3 {[%emt 0:00:02]} g6 {[%emt 0:00:00]} 4. Bg5 {[%emt 0:00:04]} c6 {[%emt 0:00:06]} 5. Qd2 {[%emt 0:00:15]} h6 {[%emt 0:00:03]} 6. Bh4 {[%emt 0:00:26]} Bg7 {[%emt 0:00:04]} 7. f4 {[%emt 0:00:11]} O-O {[%emt 0:00:19]} 8. Nf3 {[%emt 0:00:12]} b5 {[%emt 0:00:09]} 9. Bd3 {[%emt 0:00:03]} b4 {[%emt 0:00:22]} 10. Ne2 {[%emt 0:00:20]} a5 {[%emt 0:00:29]} 11. f5 {[%emt 0:01:08]} e5 {[%emt 0:01:22]} 12. fxg6 {[%emt 0:01:29]} fxg6 {[%emt 0:00:02]} 13. dxe5 {[%emt 0:00:02]} dxe5 {[%emt 0:00:01]} 14. Nxe5 {[%emt 0:00:02]} Qe8 {[%emt 0:00:17]} 15. Bg3 {[%emt 0:03:41]} Nh5 {[%emt 0:00:03]} 16. Nc4 {[%emt 0:00:17]} Nxg3 {[%emt 0:00:24]} 17. hxg3 {[%emt 0:00:19]} Nd7 {[%emt 0:00:34]} 18. O-O-O {[%emt 0:00:05]} Ne5 {[%emt 0:00:14]} 19. Nd6 {[%emt 0:00:15]} Nxd3+ {[%emt 0:00:10]} 20. Qxd3 {[%emt 0:00:05]} Qe5 {[%emt 0:00:09]} 0-1

[Event "Memorial Ukrainian Chess Warriors 2024"]
[Site "Lviv"]
[Date "2024.03.15"]
[Round "7.17"]
[White "Pavlyk, Maksym"]
[Black "Medvedyk, Vasyl"]
[Result "0-1"]
[ECO "B50"]
[WhiteElo "1693"]
[BlackElo "1957"]
[Annotator "RC"]
[PlyCount "118"]
[EventDate "2024.03.06"]
[EventType "swiss"]
[EventCountry "UKR"]
[SourceTitle "playchess.com"]
[Source "ChessBase"]
[SourceQuality "1"]
[TimeControl "600+5"]

1. e4 {[%emt 0:00:02]} c5 {[%emt 0:00:01]} 2. Nf3 {[%emt 0:00:02]} d6 {[%emt 0:00:01]} 3. c3 {[%emt 0:00:01]} Nf6 {[%emt 0:00:15]} 4. Be2 {[%emt 0:00:03]} Nc6 {[%emt 0:00:16]} 5. d4 {[%emt 0:00:02]} e6 {[%emt 0:02:54]} 6. dxc5 {[%emt 0:00:20]} Nxe4 {[%emt 0:00:08]} 7. cxd6 {[%emt 0:00:13]} Bxd6 {[%emt 0:00:13]} 8. O-O {[%emt 0:00:03]} Qc7 {[%emt 0:00:09]} 9. Qc2 {[%emt 0:00:04]} Nf6 {[%emt 0:00:30]} 10. Rd1 {[%emt 0:00:11]} h6 {[%emt 0:00:05]} 11. Nbd2 {[%emt 0:00:05]} O-O {[%emt 0:00:20]} 12. Ne4 {[%emt 0:00:06]} Be7 {[%emt 0:00:10]} 13. Nxf6+ {[%emt 0:00:13]} Bxf6 {[%emt 0:00:01]} 14. Be3 {[%emt 0:00:02]} b6 {[%emt 0:00:11]} 15. Qe4 {[%emt 0:01:03]} Bb7 {[%emt 0:00:17]} 16. Bd3 {[%emt 0:00:16]} Rfd8 {[%emt 0:00:51]} 17. Bf4 {[%emt 0:00:25]} e5 {[%emt 0:00:15]} 18. Qh7+ {[%emt 0:00:23]} Kf8 {[%emt 0:00:02]} 19. Bg3 {[%emt 0:00:07]} Ne7 {[%emt 0:00:24]} 20. Qh8+ {[%emt 0:05:05]} Ng8 {[%emt 0:00:02]} 21. Bh7 {[%emt 0:00:36]} g6 {[%emt 0:03:03]} 22. Bxe5 {[%emt 0:00:31]} Bxh8 {[%emt 0:00:46]} 23. Bxc7 {[%emt 0:00:02]} Rxd1+ {[%emt 0:00:02]} 24. Rxd1 {[%emt 0:00:01]} Nf6 {[%emt 0:00:01]} 25. Be5 {[%emt 0:00:13]} Re8 {[%emt 0:00:27]} 26. Bxf6 {[%emt 0:01:43]} Bxf6 {[%emt 0:00:03]} 27. Rd7 {[%emt 0:00:03]} Bxf3 {[%emt 0:00:18]} 28. gxf3 {[%emt 0:00:02]} Re7 {[%emt 0:00:04]} 29. Rd6 {[%emt 0:00:06]} Kg7 {[%emt 0:00:10]} 30. f4 {[%emt 0:00:04]} Bh4 {[%emt 0:00:22]} 31. Bxg6 fxg6 {[%emt 0:00:02]} 32. Kf1 {[%emt 0:00:23]} Kf7 {[%emt 0:00:07]} 33. Rc6 {[%emt 0:00:03]} Bf6 {[%emt 0:00:06]} 34. Kg2 {[%emt 0:00:05]} Re2 {[%emt 0:00:12]} 35. Rc7+ {[%emt 0:00:04]} Ke6 {[%emt 0:00:03]} 36. Rxa7 {[%emt 0:00:08]} Rxb2 {[%emt 0:00:02]} 37. c4 {[%emt 0:00:04]} Bd4 {[%emt 0:00:02]} 38. Kf3 {[%emt 0:00:03]} Bc5 {[%emt 0:00:06]} 39. Rc7 {[%emt 0:00:06]} Rxf2+ 40. Ke4 {[%emt 0:00:02]} Re2+ {[%emt 0:00:10]} 41. Kf3 {[%emt 0:00:01]} Rxa2 {[%emt 0:00:03]} 42. Rc6+ {[%emt 0:00:02]} Kf5 {[%emt 0:00:04]} 43. Rc7 {[%emt 0:00:09]} Ra3+ {[%emt 0:00:10]} 44. Ke2 {[%emt 0:00:02]} Kxf4 {[%emt 0:00:03]} 45. Rf7+ {[%emt 0:00:02]} Kg5 {[%emt 0:00:04]} 46. Kf1 {[%emt 0:00:21]} Rc3 {[%emt 0:00:04]} 47. Rb7 {[%emt 0:00:07]} Rxc4 {[%emt 0:00:03]} 48. Ke2 {[%emt 0:00:01]} Rc2+ {[%emt 0:00:02]} 49. Kf3 {[%emt 0:00:01]} Rc3+ {[%emt 0:00:04]} 50. Ke2 {[%emt 0:00:02]} Ra3 {[%emt 0:00:02]} 51. Rd7 {[%emt 0:00:06]} Ra2+ {[%emt 0:00:12]} 52. Kf3 {[%emt 0:00:02]} Rxh2 {[%emt 0:00:04]} 53. Rd5+ {[%emt 0:00:03]} Kf6 {[%emt 0:00:01]} 54. Kg3 {[%emt 0:00:07]} Rb2 {[%emt 0:00:03]} 55. Rd8 {[%emt 0:00:04]} h5 {[%emt 0:00:02]} 56. Rd3 {[%emt 0:00:03]} g5 {[%emt 0:00:02]} 57. Rf3+ {[%emt 0:00:01]} Kg6 {[%emt 0:00:02]} 58. Rd3 {[%emt 0:00:03]} Ra2 {[%emt 0:00:03]} 59. Rb3 {[%emt 0:00:05]} Ra3 {[%emt 0:00:03]} 0-1

[Event "Memorial Ukrainian Chess Warriors 2024"]
[Site "Lviv"]
[Date "2024.03.15"]
[Round "7.18"]
[White "Ivanov, Taras"]
[Black "Skarbarchuk, Tetyana"]
[Result "1-0"]
[ECO "A06"]
[WhiteElo "1831"]
[BlackElo "1929"]
[Annotator "RC"]
[PlyCount "97"]
[EventDate "2024.03.06"]
[EventType "swiss"]
[EventCountry "UKR"]
[SourceTitle "playchess.com"]
[Source "ChessBase"]
[SourceQuality "1"]
[TimeControl "600+5"]

1. Nf3 {[%emt 0:00:02]} d5 {[%emt 0:00:01]} 2. b3 {[%emt 0:00:01]} Nf6 {[%emt 0:00:03]} 3. Bb2 {[%emt 0:00:01]} Bf5 {[%emt 0:00:08]} 4. e3 {[%emt 0:00:01]} e6 {[%emt 0:00:04]} 5. Be2 {[%emt 0:00:02]} Bd6 {[%emt 0:00:25]} 6. O-O {[%emt 0:00:04]} O-O {[%emt 0:00:02]} 7. d4 {[%emt 0:00:02]} c6 {[%emt 0:00:16]} 8. Nbd2 {[%emt 0:00:02]} Nbd7 {[%emt 0:00:08]} 9. c4 {[%emt 0:00:31]} h6 {[%emt 0:00:05]} 10. Ne5 {[%emt 0:00:35]} Qe7 {[%emt 0:00:31]} 11. a3 {[%emt 0:00:38]} Rad8 {[%emt 0:00:26]} 12. c5 {[%emt 0:00:52]} Bc7 {[%emt 0:00:27]} 13. b4 {[%emt 0:00:05]} Nxe5 {[%emt 0:00:24]} 14. dxe5 {[%emt 0:00:02]} Nd7 {[%emt 0:00:01]} 15. f4 {[%emt 0:01:26]} f6 {[%emt 0:00:05]} 16. exf6 {[%emt 0:00:03]} gxf6 {[%emt 0:00:01]} 17. Bg4 {[%emt 0:00:29]} Bh7 {[%emt 0:00:33]} 18. Qb3 {[%emt 0:00:46]} Rf7 {[%emt 0:00:19]} 19. e4 {[%emt 0:00:40]} Nf8 {[%emt 0:00:10]} 20. exd5 {[%emt 0:02:48]} Rxd5 {[%emt 0:00:02]} 21. Rad1 {[%emt 0:01:48]} Qd8 {[%emt 0:01:32]} 22. Nc4 {[%emt 0:00:21]} Bd3 {[%emt 0:00:16]} 23. Rfe1 {[%emt 0:00:32]} Bxf4 {[%emt 0:00:15]} 24. Ne3 {[%emt 0:00:01]} Bxe3+ {[%emt 0:02:08]} 25. Rxe3 {[%emt 0:00:01]} Bg6 {[%emt 0:00:07]} 26. Rde1 {[%emt 0:00:16]} Bf5 {[%emt 0:01:22]} 27. Bf3 {[%emt 0:00:04]} Rdd7 {[%emt 0:00:43]} 28. Be2 {[%emt 0:00:05]} Rg7 {[%emt 0:00:13]} 29. Bc4 {[%emt 0:00:01]} Kh8 {[%emt 0:00:35]} 30. Rg3 {[%emt 0:00:06]} Rdf7 {[%emt 0:00:13]} 31. Ree3 {[%emt 0:00:08]} Rg5 {[%emt 0:00:09]} 32. h4 {[%emt 0:00:01]} Rgg7 {[%emt 0:00:11]} 33. Rgf3 {[%emt 0:00:07]} Rd7 {[%emt 0:00:31]} 34. Re1 {[%emt 0:00:06]} Kh7 {[%emt 0:00:09]} 35. Ref1 {[%emt 0:00:06]} Rd2 {[%emt 0:00:04]} 36. R3f2 {[%emt 0:00:02]} Rxf2 {[%emt 0:00:10]} 37. Rxf2 {[%emt 0:00:01]} Qe7 {[%emt 0:00:06]} 38. Qc3 {[%emt 0:00:03]} Nd7 {[%emt 0:00:10]} 39. Qe3 {[%emt 0:00:06]} Bg4 {[%emt 0:00:05]} 40. Qf4 {[%emt 0:00:05]} e5 {[%emt 0:00:03]} 41. Qe4+ {[%emt 0:00:02]} f5 42. Qd3 {[%emt 0:00:09]} Rg6 {[%emt 0:00:13]} 43. h5 {[%emt 0:00:04]} Rg5 {[%emt 0:00:02]} 44. Rd2 {[%emt 0:00:06]} Nf8 {[%emt 0:00:00]} 45. Qe3 {[%emt 0:00:11]} Rxh5 {[%emt 0:00:13]} 46. Qxe5 {[%emt 0:00:03]} Qxe5 {[%emt 0:00:06]} 47. Bxe5 {[%emt 0:00:01]} Rg5 {[%emt 0:00:04]} 48. Rd8 {[%emt 0:00:03]} Ng6 {[%emt 0:00:02]} 49. Rd7+ {[%emt 0:00:03]} 1-0

[Event "Memorial Ukrainian Chess Warriors 2024"]
[Site "Lviv"]
[Date "2024.03.15"]
[Round "7.19"]
[White "Hychkevych, Vitaliy"]
[Black "Starozhilov, Leonid"]
[Result "1/2-1/2"]
[ECO "E83"]
[WhiteElo "1550"]
[BlackElo "2285"]
[Annotator "RC"]
[PlyCount "91"]
[EventDate "2024.03.06"]
[EventType "swiss"]
[EventCountry "UKR"]
[SourceTitle "playchess.com"]
[Source "ChessBase"]
[SourceQuality "1"]
[TimeControl "600+5"]

1. d4 {[%emt 0:00:01]} Nf6 {[%emt 0:00:01]} 2. c4 {[%emt 0:00:01]} g6 {[%emt 0:00:01]} 3. Nc3 {[%emt 0:00:01]} Bg7 {[%emt 0:00:01]} 4. e4 {[%emt 0:00:00]} d6 {[%emt 0:00:01]} 5. f3 {[%emt 0:00:01]} O-O {[%emt 0:00:02]} 6. Be3 {[%emt 0:00:01]} Nc6 {[%emt 0:00:00]} 7. Nge2 a6 8. Qd2 {[%emt 0:00:24]} Na5 {[%emt 0:00:02]} 9. Ng3 {[%emt 0:00:14]} b5 {[%emt 0:00:03]} 10. cxb5 {[%emt 0:00:11]} axb5 {[%emt 0:00:01]} 11. Bxb5 {[%emt 0:00:09]} Nb3 {[%emt 0:00:01]} 12. Qd1 {[%emt 0:00:18]} Nxa1 {[%emt 0:00:03]} 13. Qxa1 {[%emt 0:00:02]} Ba6 {[%emt 0:00:13]} 14. Bxa6 {[%emt 0:00:05]} Rxa6 {[%emt 0:00:01]} 15. O-O {[%emt 0:00:02]} c6 {[%emt 0:00:04]} 16. a3 {[%emt 0:00:13]} Qa5 {[%emt 0:00:07]} 17. Rc1 {[%emt 0:00:18]} Rb8 {[%emt 0:00:05]} 18. Qa2 {[%emt 0:01:09]} Nd7 {[%emt 0:00:27]} 19. Nge2 {[%emt 0:00:28]} Qb6 {[%emt 0:00:40]} 20. Rc2 {[%emt 0:01:32]} Qb3 {[%emt 0:00:15]} 21. Qxb3 {[%emt 0:00:09]} Rxb3 {[%emt 0:00:02]} 22. Nc1 {[%emt 0:00:00]} Rb8 {[%emt 0:00:02]} 23. Nd3 {[%emt 0:00:16]} Raa8 {[%emt 0:00:52]} 24. Nd1 {[%emt 0:00:48]} Rc8 {[%emt 0:00:19]} 25. Nc3 {[%emt 0:01:17]} e6 {[%emt 0:00:09]} 26. a4 {[%emt 0:00:16]} c5 {[%emt 0:00:17]} 27. dxc5 {[%emt 0:00:41]} Nxc5 {[%emt 0:00:07]} 28. Nxc5 {[%emt 0:00:55]} dxc5 {[%emt 0:00:02]} 29. Nb5 {[%emt 0:00:11]} Rxa4 {[%emt 0:00:09]} 30. Nd6 {[%emt 0:00:01]} Rb8 {[%emt 0:00:17]} 31. Rxc5 {[%emt 0:00:58]} Bxb2 {[%emt 0:00:23]} 32. Nc4 {[%emt 0:00:24]} Bf6 {[%emt 0:01:23]} 33. h3 {[%emt 0:00:23]} Raa8 {[%emt 0:00:26]} 34. e5 {[%emt 0:00:48]} Bh4 {[%emt 0:00:52]} 35. Nd6 {[%emt 0:00:25]} Bg3 {[%emt 0:00:27]} 36. Ne4 {[%emt 0:00:16]} Ra1+ {[%emt 0:00:23]} 37. Rc1 {[%emt 0:00:06]} Rxc1+ {[%emt 0:00:15]} 38. Bxc1 {[%emt 0:00:01]} Bxe5 {[%emt 0:00:14]} 39. Be3 {[%emt 0:00:07]} Ra8 {[%emt 0:00:22]} 40. f4 {[%emt 0:00:03]} Ra4 {[%emt 0:00:23]} 41. Nc5 {[%emt 0:00:06]} Bxf4 {[%emt 0:00:08]} 42. Nxa4 {[%emt 0:00:01]} Bxe3+ 43. Kf1 Bd4 {[%emt 0:00:02]} 44. Ke2 {[%emt 0:00:03]} f5 {[%emt 0:00:01]} 45. Kd3 {[%emt 0:00:05]} e5 {[%emt 0:00:02]} 46. g4 1/2-1/2

[Event "Memorial Ukrainian Chess Warriors 2024"]
[Site "Lviv"]
[Date "2024.03.15"]
[Round "7.20"]
[White "Marchyshyn, Vasyl"]
[Black "Petrov, Vladimir Sergeev"]
[Result "0-1"]
[ECO "C01"]
[WhiteElo "1753"]
[BlackElo "2349"]
[Annotator "TA"]
[PlyCount "76"]
[EventDate "2024.03.06"]
[EventType "swiss"]
[EventCountry "UKR"]
[SourceTitle "playchess.com"]
[Source "ChessBase"]
[SourceQuality "1"]
[TimeControl "600+5"]

{[%evp 17,76,27,57,47,71,33,111,62,88,34,31,43,116,124,189,180,165,173,412,172,187,193,193,193,207,174,270,277,288,272,1648,35,28,23,29,-27,-37,-35,-35,-41,-39,-168,-178,-164,-160,-149,-142,-242,-91,-402,-400,-1496,-1506,-29991,-29992,-29994,-29995,-29995,-29996,-29996,-29997]} 1. e4 {[%emt 0:00:01]} e6 {[%emt 0:00:01]} 2. d4 {[%emt 0:00:02]} d5 {[%emt 0:00:01]} 3. exd5 {[%emt 0:00:03]} exd5 {[%emt 0:00:01]} 4. Nf3 {[%emt 0:00:04]} Nc6 {[%emt 0:00:01]} 5. c3 {[%emt 0:00:46]} Bd6 {[%emt 0:00:08]} 6. Bd3 {[%emt 0:00:08]} Nge7 {[%emt 0:00:01]} 7. O-O {[%emt 0:00:06]} Bg4 {[%emt 0:00:02]} 8. Nbd2 {[%emt 0:00:10]} Qd7 {[%emt 0:00:13]} 9. Re1 {[%emt 0:00:36]} O-O-O {[%emt 0:00:03]} 10. b4 {[%emt 0:00:08]} f6 {[%emt 0:00:08]} 11. a4 {[%emt 0:00:44]} g5 {[%emt 0:00:18]} ({Besser ist} 11... Ng6 $14) 12. a5 {[%emt 0:00:17]} (12. Nb3 $16) 12... Bf5 {[%emt 0:00:35]} 13. Nb3 {[%emt 0:00:29]} (13. Be2 $16) 13... Bxd3 $14 {[%emt 0:00:37]} 14. Qxd3 {[%emt 0:00:05]} Nf5 {[%emt 0:00:09]} (14... Qf5 $14 15. Qxf5+ Nxf5) 15. b5 $16 {[%emt 0:00:32]} Nce7 {[%emt 0:00:15]} (15... Nb8 $16) 16. Nc5 $36 {[%emt 0:01:26][%mdl 2048] Schwarz steht unter starkem Druck.} Bxc5 {[%emt 0:00:03]} 17. dxc5 {[%emt 0:00:01]} Rhe8 $2 {[%emt 0:00:25] [#]} (17... Kb8 {war einen Versuch wert.} 18. a6 g4 19. axb7 (19. Nd4 Nxd4 20. Qxd4 Nf5 $18) 19... gxf3) 18. c6 $1 {[%emt 0:01:23][%mdl 512]} bxc6 {[%emt 0:00:11] [#]} 19. b6 {[%emt 0:00:02][%mdl 512]} Kb7 {[%emt 0:02:58][%cal Bc8b7,Bb7a8,Ba8b8][%mdl 32] Verhindert Qa6+} (19... cxb6 $2 20. axb6 Qb7 21. bxa7 $18 (21. Rxa7 Qxb6 22. Ra6 Qb7 $18)) 20. a6+ $1 {[%emt 0:01:48][%mdl 1024] Weiss hat starke Kompensation.} Ka8 {[%emt 0:00:20]} 21. b7+ {[%emt 0:00:03]} Kb8 {[%emt 0:00:01]} 22. Ba3 $1 {[%emt 0:00:05]} Ng6 {[%emt 0:01:26] [#]} 23. Nd4 $1 {[%emt 0:01:09]} Nd6 {[%emt 0:00:23]} (23... Nxd4 24. Qxd4 (24. cxd4 Nf4 $11) 24... Rxe1+ 25. Rxe1 Re8) 24. Bxd6 $2 {[%emt 0:00:58]} (24. Qh3 $18 {Weiss will mit Qxd7 Matt setzen.} Rxe1+ 25. Rxe1) 24... cxd6 $14 {[%emt 0:00:15]} 25. Qc2 {[%emt 0:00:26]} c5 {[%emt 0:00:13] Das Brett brennt.} 26. Nf5 {[%emt 0:00:06]} ({Vorzuziehen ist} 26. Qf5 Qxf5 (26... cxd4 $2 {zu gefräßig.} 27. Qxd7 Ne5 28. Qxh7 $18) (26... Rxe1+ $2 27. Rxe1 Qxf5 28. Nxf5 $18) 27. Nxf5) 26... Re5 $11 {[%emt 0:00:12]} 27. Ne3 {[%emt 0:00:15]} f5 {[%emt 0:00:23]} 28. Red1 {[%emt 0:00:07]} Qe6 {[%emt 0:00:01] Droht stark ...f4.} 29. c4 {[%emt 0:00:10]} (29. Qa2 $15) 29... d4 $19 {[%emt 0:00:34]} 30. Nd5 {[%emt 0:00:02]} Nf4 {[%emt 0:00:01] Gegen Qd3 gerichtet.} 31. Nxf4 {[%emt 0:00:20]} gxf4 {[%emt 0:00:01]} 32. Qd2 {[%emt 0:00:02]} (32. Qd3 $17) 32... Re4 $2 {[%emt 0:00:31]} (32... f3 $19 {bietet bessere Gewinnchancen.} 33. Qc1 Rf8) 33. Qa5 $2 {[%emt 0:00:05][%mdl 8192]} (33. Qd3 $17 {war die entscheidende Verteidigung.}) 33... Rg8 {[%emt 0:00:10]} 34. Re1 {[%emt 0:00:06] Verhindert f3} (34. Qa3 $142 Qxc4 35. g3) 34... f3 {[%emt 0:00:16]} 35. g3 {[%emt 0:00:04]} f4 {[%emt 0:00:33] Aktives Gegenspiel! Schwarz setzt Matt.} 36. Rxe4 {[%emt 0:00:06] [#]} Qh3 $1 {[%emt 0:00:02][%csl Gf3][%cal Rh3g2]} 37. Qc7+ {[%emt 0:00:09]} Kxc7 {[%emt 0:00:04][%csl Gf3][%cal Rh3g2]} 38. b8=Q+ {[%emt 0:00:03]} Rxb8 {[%emt 0:00:07] Kein schönes Erlebnis für Weiß.   Gewichteter Fehlerwert: Weiß=0.80/Schwarz=0.28 (präzise) .  Verlustzug:     	Weiß=1     	---        Gewinn verpasst:   	Weiß=1     	---        Fehler:       	Weiß=7     	Schwarz=6     Ungenau:       	Weiß=2     	Schwarz=2     OK:         	Weiß=6     	Schwarz=8     Bester:       	Weiß=1     	Schwarz=2     Stark:        	Weiß=3     	---} 0-1

[Event "Memorial Ukrainian Chess Warriors 2024"]
[Site "Lviv"]
[Date "2024.03.15"]
[Round "7.21"]
[White "Semenov, Dmytro"]
[Black "Sokhanskyi, Rostyslav"]
[Result "1/2-1/2"]
[ECO "B12"]
[WhiteElo "2370"]
[BlackElo "1603"]
[Annotator "TA"]
[PlyCount "77"]
[EventDate "2024.03.06"]
[EventType "swiss"]
[EventCountry "UKR"]
[SourceTitle "playchess.com"]
[Source "ChessBase"]
[SourceQuality "1"]
[TimeControl "600+5"]

{[%evp 9,76,0,0,0,0,0,0,-34,-32,-39,-32,-54,-41,-106,0,0,0,0,-21,0,189,110,116,115,128,139,142,134,169,169,166,160,204,210,182,129,300,299,450,439,440,416,489,484,462,453,460,454,413,314,324,317,315,290,370,354,356,335,358,331,373,373,366,357,577,574,569,568,29999]} 1. e4 {[%emt 0:00:04]} c6 {[%emt 0:00:04]} 2. d4 {[%emt 0:00:05]} d5 {[%emt 0:00:01]} 3. e5 {[%emt 0:00:11]} c5 {[%emt 0:00:03]} 4. dxc5 {[%emt 0:00:07]} e6 {[%emt 0:00:03]} 5. a3 {[%emt 0:00:13]} Bxc5 {[%emt 0:00:03]} 6. Qg4 {[%emt 0:00:07]} Ne7 {[%emt 0:00:32]} 7. Qxg7 {[%emt 0:00:16]} Ng6 {[%emt 0:00:04]} 8. Qh6 {[%emt 0:02:55] Dodges Qh4. The position is equal.} Qb6 {[%emt 0:00:46]} 9. Nh3 {[%emt 0:00:49]} Nc6 {[%emt 0:00:42][%cal Oc8d7]} 10. Be2 {[%emt 0:01:15]} Nd4 {[%emt 0:00:52]} 11. Qd2 {[%emt 0:00:32]} (11. Bd3 $15) 11... Nxe5 {[%emt 0:00:37]} (11... Bd7 $17 {[%cal Og6h4] aiming for ...Nh4!} 12. Bh5 Qc7 (12... Nxe5 13. O-O $15)) 12. b4 $11 {[%emt 0:00:18]} Bd6 {[%emt 0:01:39] ...Rg8 would now be deadly.} 13. Bb2 $1 {[%emt 0:00:06]} Nxe2 {[%emt 0:00:16]} 14. Qxe2 {[%emt 0:00:05]} Qc7 $2 {[%emt 0:00:29] [#]} (14... f6 $1 $11 {and Black has nothing to worry.}) 15. f4 {[%emt 0:00:21]} ({White should play} 15. Nc3 $1 $18 {[%cal Rc3b5] Hoping for Nb5.} Qc4 16. f4) 15... Ng6 $16 {[%emt 0:00:38]} 16. Bxh8 {[%emt 0:00:09]} Nxh8 {[%emt 0:00:02]} 17. O-O {[%emt 0:00:34]} Bd7 {[%emt 0:00:03]} 18. Nd2 {[%emt 0:00:47]} O-O-O {[%emt 0:00:26][%cal Oc8b8]} 19. c4 {[%emt 0:00:08]} Kb8 {[%emt 0:00:39]} 20. Rac1 {[%emt 0:00:13]} dxc4 {[%emt 0:00:07]} 21. Nxc4 {[%emt 0:00:20]} ({And not} 21. Rxc4 Bb5 $11) (21. Qxc4 $6 Qb6+ 22. Rf2 Ng6 $16 (22... Rc8 23. Qf1 $16)) 21... Bb5 {[%emt 0:00:24]} 22. Qe4 {[%emt 0:00:29]} ({Better is} 22. Qa2 $18) 22... Bc6 $2 {[%emt 0:00:14] A mistake that costs the game.} (22... Ng6 $16 {is a better defense.}) 23. Qxh7 $18 {[%emt 0:00:18]} Ng6 {[%emt 0:00:07]} (23... f6 $142 24. Qc2 (24. Qxc7+ Bxc7 25. Rfe1 Rc8 $18) 24... Nf7) 24. Nxd6 {[%emt 0:00:16]} Qxd6 {[%emt 0:00:12]} 25. Rcd1 {[%emt 0:00:40] Prevents Qd4+} ({Much less strong is} 25. Qxf7 Nh4 26. Rfd1 Bd5 $18) 25... Qc7 {[%emt 0:00:37]} 26. Rxd8+ {[%emt 0:00:08]} Qxd8 {[%emt 0:00:01]} 27. Qxf7 {[%emt 0:00:05]} Nh4 {[%emt 0:00:09]} 28. Qxe6 {[%emt 0:00:13]} Bxg2 {[%emt 0:00:25]} 29. Qe5+ {[%emt 0:00:05]} Ka8 {[%emt 0:00:16]} 30. Ng5 {[%emt 0:00:26]} Bxf1 {[%emt 0:00:33]} 31. Kxf1 {[%emt 0:00:01][%mdl 4096] Endgame. KQN-KQN} Qd1+ {[%emt 0:00:21]} 32. Qe1 {[%emt 0:00:02]} Qd3+ {[%emt 0:00:09]} 33. Qe2 {[%emt 0:00:06]} Qd8 {[%emt 0:00:36]} 34. Ne6 {[%emt 0:00:08]} Qc8 {[%emt 0:00:12]} 35. Kf2 {[%emt 0:00:06]} a6 {[%emt 0:00:04]} 36. Qe4 {[%emt 0:00:09] [#] Strongly threatening Kg3.} Qc3 {[%emt 0:00:25]} (36... Qg8 37. a4 Ka7) 37. Nc5 {[%emt 0:00:05]} Qg7 {[%emt 0:00:13]} 38. f5 {[%emt 0:00:10]} ({Less strong is} 38. Nxa6 Qb2+ 39. Kg3 Qxa3+ 40. Kxh4 Qxa6 $16) 38... Qg5 {[%emt 0:00:05]} 39. Qxb7# {[%emt 0:00:02][%mdl 32768] Weighted Error Value: White=0.14 (very precise) /Black=0.59.  Loses game:     	---       	Black=2      Mistake:       	White=3     	Black=3      Inaccurate:     	White=1     	Black=1      OK:         	White=17    	Black=13     Best:        	White=3     	Black=2      Strong:       	White=1     	---       . An unexpected result.} 1/2-1/2